[Event "ISR-chT 2019"]
[Site "Israel"]
[Date "2019.05.05"]
[Round "11.14"]
[White "Zanan, Evgeny"]
[Black "Shachar, Ehud"]
[Result "1-0"]
[ECO "A84"]
[WhiteElo "2505"]
[BlackElo "2363"]
[Annotator "RC"]
[PlyCount "41"]
[EventDate "2019.01.04"]
[EventType "team-tourn"]
[EventCountry "ISR"]
[SourceTitle "playchess.com"]
[Source "ChessBase"]
[SourceQuality "1"]
[TimeControl "40/5400+30:1800+30"]

1. d4 {[%emt 0:03:45]} e6 {[%emt 0:00:00]} 2. Nf3 {[%emt 0:01:30]} f5 {[%emt 0:00:00]} 3. Bf4 {[%emt 0:00:04]} Nf6 {[%emt 0:00:00]} 4. e3 {[%emt 0:00:06]} d5 {[%emt 0:00:22]} 5. c4 {[%emt 0:05:17]} c6 {[%emt 0:00:08]} 6. Nc3 {[%emt 0:00:14]} Bd6 {[%emt 0:00:07]} 7. Be2 {[%emt 0:03:00]} O-O {[%emt 0:00:45]} 8. O-O {[%emt 0:01:48]} Ne4 {[%emt 0:04:17]} 9. Rc1 {[%emt 0:07:53]} b6 {[%emt 0:13:40]} 10. Qb3 {[%emt 0:07:25]} Bb7 {[%emt 0:08:59]} 11. Rfd1 {[%emt 0:03:31]} Kh8 {[%emt 0:12:09]} 12. Nxe4 {[%emt 0:10:21]} fxe4 {[%emt 0:04:55]} 13. Ne5 {[%emt 0:00:25]} Bc7 {[%emt 0:13:07]} 14. Bg4 {[%emt 0:02:49]} Bxe5 {[%emt 0:08:15]} 15. Bxe5 {[%emt 0:01:55]} Qh4 {[%emt 0:00:14]} 16. Bxe6 {[%emt 0:04:19]} Qxf2+ {[%emt 0:01:25]} 17. Kh1 {[%emt 0:00:04]} dxc4 {[%emt 0:01:12]} 18. Qxc4 {[%emt 0:10:06]} Qxe3 {[%emt 0:05:09]} 19. Rc3 {[%emt 0:01:02]} b5 {[%emt 0:10:38]} 20. Rxe3 {[%emt 0:00:55]} bxc4 {[%emt 0:00:08]} 21. Rg3 {[%emt 0:00:03]} 1-0

[Event "ISR-chT 2019"]
[Site "Israel"]
[Date "2019.05.05"]
[Round "11.16"]
[White "Raznikov, Danny"]
[Black "Gershon, Alik"]
[Result "0-1"]
[ECO "D02"]
[WhiteElo "2506"]
[BlackElo "2452"]
[Annotator "RC"]
[PlyCount "114"]
[EventDate "2019.01.04"]
[EventType "team-tourn"]
[EventCountry "ISR"]
[SourceTitle "playchess.com"]
[Source "ChessBase"]
[SourceQuality "1"]
[TimeControl "40/5400+30:1800+30"]

1. d4 {[%emt 0:01:16]} Nf6 {[%emt 0:00:00]} 2. Nf3 {[%emt 0:00:20]} e6 {[%emt 0:00:15]} 3. Bf4 {[%emt 0:02:20]} b6 {[%emt 0:06:02]} 4. e3 {[%emt 0:07:26]} Bb7 {[%emt 0:00:07]} 5. Bd3 {[%emt 0:00:25]} Be7 {[%emt 0:00:12]} 6. h3 {[%emt 0:00:31]} O-O {[%emt 0:01:23]} 7. Nbd2 {[%emt 0:01:41]} d5 {[%emt 0:00:25]} 8. O-O {[%emt 0:01:26]} Nbd7 {[%emt 0:02:23]} 9. a4 {[%emt 0:06:56]} a5 {[%emt 0:07:05]} 10. Qe2 {[%emt 0:01:46]} Ne4 {[%emt 0:00:59]} 11. Rfd1 {[%emt 0:02:13]} Bd6 {[%emt 0:01:53]} 12. Bxe4 {[%emt 0:18:01]} dxe4 {[%emt 0:00:06]} 13. Ng5 {[%emt 0:00:07]} Bxf4 {[%emt 0:18:43]} 14. exf4 {[%emt 0:01:03]} Nf6 {[%emt 0:00:07]} 15. c3 {[%emt 0:18:31]} Qd5 {[%emt 0:02:54]} 16. Re1 {[%emt 0:00:34]} Qf5 {[%emt 0:00:51]} 17. Qe3 {[%emt 0:03:48]} h6 {[%emt 0:02:22]} 18. Ngxe4 {[%emt 0:00:34]} Nd5 {[%emt 0:00:04]} 19. Qg3 {[%emt 0:01:14]} Nxf4 {[%emt 0:01:53]} 20. Re3 {[%emt 0:03:38]} g5 {[%emt 0:08:55]} 21. h4 {[%emt 0:03:31]} f6 {[%emt 0:00:13]} 22. f3 {[%emt 0:02:39]} Rf7 {[%emt 0:02:02]} 23. Nf2 {[%emt 0:03:36]} Qc2 {[%emt 0:11:44]} 24. Nde4 {[%emt 0:06:29]} Bxe4 {[%emt 0:03:39]} 25. Rxe4 {[%emt 0:01:56]} Qxe4 {[%emt 0:00:23]} 26. Nxe4 {[%emt 0:00:25]} Ne2+ {[%emt 0:00:04]} 27. Kf2 {[%emt 0:00:12]} Nxg3 {[%emt 0:00:06]} 28. Kxg3 {[%emt 0:00:39]} gxh4+ {[%emt 0:01:30]} 29. Kxh4 {[%emt 0:00:46]} Rd8 {[%emt 0:00:21]} 30. Re1 {[%emt 0:01:47]} Kf8 {[%emt 0:04:04]} 31. f4 {[%emt 0:05:58]} f5 {[%emt 0:03:20]} 32. Nd2 {[%emt 0:00:21]} Rg7 {[%emt 0:02:12]} 33. g3 {[%emt 0:00:24]} Kf7 {[%emt 0:01:03]} 34. Nf3 {[%emt 0:00:08]} Kf6 {[%emt 0:00:11]} 35. Re3 {[%emt 0:00:25]} c5 {[%emt 0:01:11]} 36. Kh3 {[%emt 0:00:30]} Rdg8 {[%emt 0:01:40]} 37. Ne5 {[%emt 0:00:31]} cxd4 {[%emt 0:03:16]} 38. cxd4 {[%emt 0:00:09]} Rd8 {[%emt 0:00:04]} 39. Rd3 {[%emt 0:01:46]} Rc7 {[%emt 0:01:14]} 40. b3 {[%emt 0:00:20]} Rb7 {[%emt 0:07:38]} 41. Nf3 {[%emt 0:04:17]} Ke7 {[%emt 0:12:41]} 42. Ne5 {[%emt 0:02:11]} Kd6 {[%emt 0:03:56]} 43. Nc4+ {[%emt 0:00:20]} Kc6 {[%emt 0:00:05]} 44. Rc3 {[%emt 0:01:07]} Kd5 {[%emt 0:02:16]} 45. Re3 {[%emt 0:00:21]} Kxd4 {[%emt 0:08:39]} 46. Rxe6 {[%emt 0:00:05]} Kc3 {[%emt 0:00:12]} 47. Nxb6 {[%emt 0:04:06]} Kxb3 {[%emt 0:00:09]} 48. Rxh6 {[%emt 0:00:19]} Rdb8 {[%emt 0:00:43]} 49. Nd5 {[%emt 0:00:27]} Kxa4 {[%emt 0:00:07]} 50. g4 {[%emt 0:00:18]} Kb3 {[%emt 0:04:33]} 51. Ra6 {[%emt 0:04:21]} a4 {[%emt 0:00:41]} 52. g5 {[%emt 0:01:49]} a3 {[%emt 0:01:05]} 53. Ne3 {[%emt 0:00:56]} Rb4 {[%emt 0:04:25]} 54. g6 {[%emt 0:00:50]} Ra4 {[%emt 0:00:28]} 55. Rd6 {[%emt 0:02:50]} a2 {[%emt 0:00:29]} 56. Rd3+ {[%emt 0:00:46]} Kb2 {[%emt 0:00:40]} 57. Rd2+ {[%emt 0:01:03]} Kc3 {[%emt 0:00:16]} 0-1

[Event "ISR-chT 2019"]
[Site "Israel"]
[Date "2019.05.05"]
[Round "11.24"]
[White "Ganor, Dotan"]
[Black "Bitensky, Igor"]
[Result "1/2-1/2"]
[ECO "B07"]
[WhiteElo "2276"]
[BlackElo "2377"]
[Annotator "RC"]
[PlyCount "33"]
[EventDate "2019.01.04"]
[EventType "team-tourn"]
[EventCountry "ISR"]
[SourceTitle "playchess.com"]
[Source "ChessBase"]
[SourceQuality "1"]
[TimeControl "40/5400+30:1800+30"]

1. e4 {[%emt 0:00:00]} g6 {[%emt 0:01:46]} 2. d4 {[%emt 0:00:00]} Bg7 {[%emt 0:00:01]} 3. Nc3 {[%emt 0:00:24]} d6 {[%emt 0:00:01]} 4. g3 {[%emt 0:01:16]} Nf6 {[%emt 0:00:01]} 5. Bg2 {[%emt 0:00:10]} O-O {[%emt 0:00:02]} 6. Nge2 {[%emt 0:00:24]} Nc6 {[%emt 0:00:25]} 7. O-O {[%emt 0:00:36]} e5 {[%emt 0:01:18]} 8. dxe5 {[%emt 0:01:25]} Nxe5 {[%emt 0:03:19]} 9. f4 {[%emt 0:05:22]} Ned7 {[%emt 0:02:34]} 10. h3 {[%emt 0:03:08]} Nc5 {[%emt 0:10:12]} 11. g4 {[%emt 0:11:11]} Rb8 {[%emt 0:02:46]} 12. Be3 {[%emt 0:12:25]} b6 {[%emt 0:10:29]} 13. Ng3 {[%emt 0:10:16]} Bb7 {[%emt 0:06:49]} 14. Bd4 {[%emt 0:06:14]} Ne6 {[%emt 0:03:49]} 15. Be3 {[%emt 0:00:10]} Nc5 {[%emt 0:00:33]} 16. Bd4 {[%emt 0:00:28]} Ne6 {[%emt 0:06:54]} 17. Be3 {[%emt 0:00:05]} 1/2-1/2

[Event "ISR-chT 2019"]
[Site "Israel"]
[Date "2019.05.05"]
[Round "11.28"]
[White "Bykhovsky, Avigdor"]
[Black "Bar, Roman"]
[Result "1/2-1/2"]
[ECO "E11"]
[WhiteElo "2408"]
[BlackElo "2497"]
[Annotator "RC"]
[PlyCount "39"]
[EventDate "2019.01.04"]
[EventType "team-tourn"]
[EventCountry "ISR"]
[SourceTitle "playchess.com"]
[Source "ChessBase"]
[SourceQuality "1"]
[TimeControl "40/5400+30:1800+30"]

1. d4 {[%emt 0:00:00]} Nf6 {[%emt 0:00:00]} 2. c4 {[%emt 0:00:34]} e6 {[%emt 0:00:00]} 3. Nf3 {[%emt 0:00:07]} Bb4+ {[%emt 0:00:03]} 4. Bd2 {[%emt 0:00:14]} Qe7 {[%emt 0:00:10]} 5. Nc3 {[%emt 0:02:41]} O-O {[%emt 0:00:50]} 6. g3 {[%emt 0:00:53]} d6 {[%emt 0:00:47]} 7. Bg2 {[%emt 0:00:31]} e5 {[%emt 0:01:16]} 8. O-O {[%emt 0:00:55]} Bxc3 {[%emt 0:00:40]} 9. Bxc3 {[%emt 0:00:09]} e4 {[%emt 0:00:09]} 10. Ne1 {[%emt 0:01:49]} d5 {[%emt 0:00:12]} 11. Nc2 {[%emt 0:04:56]} Rd8 {[%emt 0:09:50]} 12. c5 {[%emt 0:06:22]} Be6 {[%emt 0:21:55]} 13. b4 {[%emt 0:02:41]} Qd7 {[%emt 0:02:18]} 14. a4 {[%emt 0:01:41]} Nc6 {[%emt 0:02:56]} 15. Bd2 {[%emt 0:04:31]} h6 {[%emt 0:04:09]} 16. Ra3 {[%emt 0:04:27]} Ne7 {[%emt 0:05:55]} 17. f3 {[%emt 0:13:35]} exf3 {[%emt 0:11:00]} 18. exf3 {[%emt 0:00:28]} Ng6 {[%emt 0:00:08]} 19. Ne3 {[%emt 0:10:56]} Re8 {[%emt 0:05:31]} 20. Rc3 {[%emt 0:07:57]} 1/2-1/2

[Event "ISR-chT 2019"]
[Site "Israel"]
[Date "2019.05.05"]
[Round "11.29"]
[White "Golod, Vitali"]
[Black "Mesropov, Konstantin"]
[Result "1/2-1/2"]
[ECO "E16"]
[WhiteElo "2503"]
[BlackElo "2413"]
[Annotator "RC"]
[PlyCount "32"]
[EventDate "2019.01.04"]
[EventType "team-tourn"]
[EventCountry "ISR"]
[SourceTitle "playchess.com"]
[Source "ChessBase"]
[SourceQuality "1"]
[TimeControl "40/5400+30:1800+30"]

1. d4 {[%emt 0:00:00]} Nf6 {[%emt 0:00:00]} 2. c4 {[%emt 0:00:18]} e6 {[%emt 0:00:02]} 3. Nf3 {[%emt 0:00:54]} Bb4+ {[%emt 0:02:51]} 4. Bd2 {[%emt 0:00:57]} Qe7 {[%emt 0:04:30]} 5. g3 {[%emt 0:00:53]} O-O {[%emt 0:07:25]} 6. Nc3 {[%emt 0:03:14]} b6 {[%emt 0:02:43]} 7. Bg2 {[%emt 0:03:04]} Bb7 {[%emt 0:03:05]} 8. O-O {[%emt 0:03:13]} a5 {[%emt 0:05:34]} 9. Rc1 {[%emt 0:04:56]} d6 {[%emt 0:04:09]} 10. d5 {[%emt 0:04:25]} e5 {[%emt 0:11:53]} 11. Nh4 {[%emt 0:04:12]} Bc8 {[%emt 0:53:18]} 12. e4 {[%emt 0:02:15]} Na6 {[%emt 0:00:00]} 13. Nb5 {[%emt 0:05:53]} Bxd2 {[%emt 0:00:00]} 14. Qxd2 {[%emt 0:01:11]} Bd7 {[%emt 0:00:00]} 15. Nc3 {[%emt 0:06:52]} Nc5 {[%emt 0:00:00]} 16. b3 {[%emt 0:03:12]} g6 {[%emt 0:00:00]} 1/2-1/2